bitfinex-derivatives/quotes_SOLF0:USTF0_20250228
["timestamp","ask_amount","ask_price","bid_price","bid_amount"]
[1740768977233,8.1686924,146.93,146.85,6.8107]
[1740768977541,0.04836744,146.91,146.88,0.05048584]
[1740768977836,1.3611924,146.93,146.79,2.607]
[1740768978239,0.05042812,146.86,146.84,0.04583015]
[1740768978431,1.3611924,146.93,146.84,0.04583015]
[1740768978636,1.3611924,146.93,146.88,6.8092]
[1740768978837,1.3611924,146.93,146.79,2.607]
[1740768978838,1.3611924,146.93,146.8,3.0032]
[1740768979239,1.3611924,146.93,146.86,6.8103]
[1740768979535,0.04496037,146.91,146.88,0.04602589]
[1740768979934,1.3611924,146.93,146.83,14.76]
[1740768980231,0.04846787,146.91,146.88,0.04478187]
[1740768980430,6.8053,146.97,146.89,6.809]
[1740768980631,6.8053,146.97,146.83,14.76]
[1740768980834,0.04415441,146.94,146.92,0.0508563]
[1740768981035,0.04415441,146.94,146.88,6.8091]
[1740768981236,14.78,146.95,146.92,0.04490374]
[1740768981739,14.8275737,146.95,146.92,0.04490374]
[1740768983438,19.58858084,146.95,146.8,195.0032]
[1740768983743,6.8096,146.88,146.8,3.0032]
[1740768984043,14.72,146.87,146.8,3.0032]
[1740768984243,14.7,146.86,146.8,3.0032]
[1740768984445,14.7,146.86,146.79,2.607]
[1740768984640,0.04649554,146.84,146.82,0.04404305]
[1740768985143,6.85789554,146.84,146.76,2.9878]
[1740768985442,0.04649554,146.84,146.82,0.04592412]
[1740768985742,6.8122,146.83,146.82,0.04566167]
[1740768986137,0.04649554,146.84,146.76,2.9878]
[1740768986340,6.8128,146.81,146.76,2.9878]
[1740768986538,14.66,146.8,146.75,2.814]
[1740768986841,14.66,146.8,146.72,2.9615]
[1740768987541,0.05023821,146.77,146.75,0.04458166]
[1740768987742,0.05023821,146.77,146.64,5.4694]
[1740768987945,14.66,146.8,146.64,5.4694]
[1740768987946,1.1784596,146.79,146.64,5.4694]
[1740768988147,204.66,146.8,146.64,5.4694]
[1740768988338,2.54102456,146.79,146.64,5.4694]
[1740768988534,1.17853393,146.78,146.64,5.4694]
[1740768989043,6.8174,146.71,146.7,0.04624824]
[1740768989243,14.62,146.71,146.7,0.04624824]
[1740768990744,24.8373,146.71,146.64,5.4694]
[1740768990941,14.62,146.71,146.63,2.9615]
[1740768992048,0.05015185,146.68,146.54,9.23947159]
[1740768992244,0.05015185,146.68,146.54,18.02517159]
[1740768992445,1.17929457,146.69,146.54,18.02517159]
[1740768992844,4.2256,146.68,146.54,8.7857]
[1740768993049,1.17929457,146.67,146.54,8.7857]
[1740768993252,14.58,146.66,146.54,8.7857]
[1740768993446,0.0503506,146.62,146.59,0.05139388]
[1740768993650,14.58,146.61,146.59,0.05139388]
[1740768994353,21.402,146.61,146.59,0.05139388]
[1740768995552,6.8225,146.6,146.59,0.05139388]
[1740768995857,6.8225,146.6,146.51,6.8265]
[1740768996240,6.8233,146.59,146.51,6.8265]
[1740768996648,6.8234,146.58,146.5,9.707]
[1740768997147,0.0524362,146.55,146.53,0.04442623]
[1740768997351,14.56,146.56,146.53,0.04442623]
[1740768997649,0.04488515,146.55,146.53,0.04442623]
[1740768999352,6.87008515,146.55,146.53,0.04442623]
[1740768999655,3.46488515,146.55,146.43,2.9712]
[1740768999851,0.04488515,146.55,146.44,6.8295]
[1740769000069,1.36481506,146.54,146.4,2.7757]
[1740769000354,1.36481506,146.54,146.4,5.7469]
[1740769000754,0.04410199,146.48,146.4,5.7469]
[1740769001554,0.04410199,146.48,146.43,0.05087191]
[1740769001955,0.04410199,146.48,146.45,6.829]
[1740769002352,0.04410199,146.48,146.44,6.8298]
[1740769002553,0.04410199,146.48,146.43,0.05087191]
[1740769004056,0.04410199,146.48,146.47,6.8285]
[1740769004253,6.8259,146.53,146.43,0.05087191]
[1740769004557,1.36481506,146.54,146.48,6.8278]
[1740769004759,6.8262,146.52,146.48,6.8278]
[1740769005055,1.36481506,146.54,146.4,5.7469]
[1740769005458,1.561e-05,146.48,146.46,0.04933733]
[1740769005851,6.8253,146.54,146.5,6.8268]
[1740769006047,14.5,146.57,146.47,2.8768]
[1740769006652,0.04434408,146.53,146.51,0.04820272]
[1740769006848,21.3266,146.52,146.51,0.04820272]
[1740769007053,14.5,146.52,146.47,2.8768]
[1740769007954,6.827,146.51,146.44,6.8298]
[1740769008157,6.827,146.51,146.48,0.04448979]
[1740769008348,14.5,146.52,146.48,0.04448979]
[1740769008548,0.04415906,146.49,146.48,0.04448979]
[1740769008955,0.04415906,146.49,146.36,2.9682]
[1740769009156,6.8282,146.48,146.36,2.9682]
[1740769009357,14.46,146.47,146.37,2.834]
[1740769010056,6.8293,146.46,146.41,0.04528358]
[1740769010357,0.04905607,146.43,146.41,0.04528358]
[1740769010559,14.48,146.42,146.41,0.04528358]
[1740769010759,14.48,146.42,146.29,9.23947159]
[1740769010961,14.48,146.42,146.3,5.7794]
[1740769011360,14.48,146.42,146.33,6.8347]
[1740769011560,14.48,146.42,146.3,5.7794]
[1740769011860,14.5,146.43,146.3,5.7794]
[1740769012066,0.04715028,146.37,146.35,0.04620784]
[1740769012268,14.5,146.45,146.35,0.04620784]
[1740769012460,14.5,146.45,146.3,20.2594]
[1740769012663,218.54,146.55,146.3,20.2594]
[1740769012857,15.84481506,146.54,146.31,1.25506382]
[1740769013061,1.3649082,146.53,146.31,4.19126382]
[1740769013261,1.3649082,146.53,146.32,1.25506382]
[1740769013461,1.3649082,146.53,146.42,6.8308]
[1740769013462,0.0473563,146.43,146.42,6.8308]
[1740769013665,14.48,146.48,146.41,0.05012613]
[1740769013960,14.48,146.49,146.45,6.8291]
[1740769014170,1.3649082,146.53,146.35,206.48]
[1740769014467,21.2862,146.52,146.35,206.48]
[1740769014860,0.05079668,146.45,146.42,0.05114731]
[1740769015256,14.46,146.52,146.35,206.48]
[1740769015458,0.0523583,146.45,146.42,0.04704468]
[1740769015657,6.8268,146.51,146.45,6.8291]
[1740769015864,0.05090609,146.45,146.42,0.04721087]
[1740769016063,14.46,146.52,146.36,1.25493971]
[1740769016268,14.46,146.52,146.47,6.8285]
[1740769017064,14.46,146.52,146.49,6.8271]
[1740769017264,0.05074658,146.51,146.49,6.8271]
[1740769018567,0.05074658,146.51,146.49,6.8275]
[1740769019773,0.05074658,146.51,146.48,6.87992569]
[1740769020169,0.05074658,146.51,146.48,0.05202569]
[1740769020369,14.46,146.52,146.49,6.8275]
[1740769020975,14.46,146.52,146.5,6.8267]
[1740769021471,1.3649082,146.53,146.52,6.8262]
[1740769022076,0.05084516,146.54,146.53,6.8257]
[1740769022469,218.54,146.55,146.45,14.36]
[1740769022671,218.58924033,146.55,146.52,0.0452306]
[1740769022972,218.54,146.55,146.45,14.36]
[1740769023175,218.58603256,146.55,146.52,0.04681183]
[1740769023472,218.54,146.55,146.5,6.827]
[1740769023674,218.58677853,146.55,146.52,0.04591014]
[1740769025168,0.04677853,146.55,146.53,6.8257]
[1740769025479,14.3,146.6,146.53,6.8257]
[1740769025976,21.1225,146.6,146.52,9.6951]
[1740769026576,0.05144585,146.57,146.55,0.04587358]
[1740769029275,0.05144585,146.57,146.55,9.28534517]
[1740769031467,0.05144585,146.57,146.55,0.04587358]
[1740769034477,0.05144585,146.57,146.55,6.87017358]
[1740769034673,0.05144585,146.57,146.55,0.04587358]
[1740769039383,14.18,146.56,146.55,0.04587358]
[1740769039985,0.05144585,146.57,146.56,6.8243]
[1740769040986,0.05144585,146.57,146.55,0.04587358]
[1740769043580,6.8243,146.56,146.55,0.04587358]
[1740769043789,0.05144585,146.57,146.55,0.04587358]
[1740769044281,0.05144585,146.57,146.51,36.86989736]
[1740769044986,0.05144585,146.57,146.43,36.86989736]
[1740769045175,14.18,146.6,146.43,228.86989736]
[1740769045380,0.05045693,146.53,146.5,0.04504873]
[1740769045683,6.8245,146.56,146.48,6.828]
[1740769045881,0.04586242,146.53,146.5,0.05164087]
[1740769047682,6.8262,146.52,146.5,0.05164087]
[1740769047890,0.04586242,146.53,146.5,0.05164087]
[1740769048385,6.8271,146.5,146.43,36.86989736]
[1740769048686,218.46,146.52,146.43,36.86989736]
[1740769048687,14.08,146.49,146.44,6.8299]
[1740769049482,0.04423123,146.48,146.45,0.05034433]
[1740769051490,6.829,146.46,146.45,0.05034433]
[1740769052189,0.04423123,146.48,146.45,0.05034433]
[1740769053186,1.40960534,146.48,146.36,6.8333]
[1740769053381,4.07337411,146.48,146.35,42.94599736]
[1740769053587,1.1811325,146.47,146.35,42.94599736]
[1740769053890,4.07337411,146.48,146.35,49.77979736]
[1740769054090,1.18112393,146.47,146.35,49.77979736]
[1740769054286,0.04643528,146.43,146.4,0.04906452]
[1740769054486,14.04643528,146.43,146.4,0.04906452]
[1740769059392,0.04643528,146.43,146.4,0.04906452]
[1740769059593,6.87723528,146.43,146.4,0.04906452]
[1740769060090,0.04643528,146.43,146.4,0.04906452]
[1740769061892,6.87693528,146.43,146.4,0.04906452]
[1740769062097,0.04643528,146.43,146.4,0.04906452]
[1740769062695,6.8311,146.42,146.4,0.04906452]
[1740769062893,0.04643528,146.43,146.4,0.04906452]
[1740769064393,20.8687,146.47,146.41,6.8313]
[1740769064895,22.15357411,146.48,146.42,6.8308]
[1740769065597,22.15357411,146.48,146.44,0.04978717]
[1740769065598,0.04848365,146.46,146.44,0.04978717]
[1740769065798,13.96,146.51,146.37,205.96]
[1740769066092,218.46,146.52,146.37,205.96]
[1740769066693,6.8279,146.49,146.37,205.96]
[1740769067087,0.04372542,146.44,146.42,0.04375]
[1740769067291,6.8279,146.49,146.45,6.8293]
[1740769068399,0.04925763,146.48,146.46,0.05065135]
[1740769070299,225.2863,146.52,146.46,0.05065135]
[1740769070498,13.9,146.56,146.46,0.05065135]
[1740769070695,13.9,146.56,146.48,6.8277]
[1740769070899,6.826,146.53,146.48,6.8277]
[1740769071501,0.04830355,146.52,146.49,0.04665044]
[1740769071903,0.04830355,146.52,146.49,6.87415044]
[1740769073500,0.04830355,146.52,146.49,0.04665044]
[1740769074202,6.87480355,146.52,146.49,0.04665044]
[1740769074597,0.04830355,146.52,146.49,0.04665044]
[1740769074798,13.84,146.51,146.49,0.04665044]
[1740769074993,20.6669,146.51,146.49,0.04665044]
[1740769075497,13.84,146.51,146.49,0.04665044]
[1740769075704,13.84,146.51,146.37,192.0]
[1740769075901,18.5235,146.51,146.38,8.8475]
[1740769076101,6.8297,146.45,146.38,15.6799]
[1740769076704,20.6691,146.46,146.38,8.8475]
[1740769076905,20.6691,146.46,146.4,0.04588954]
[1740769076906,0.04777177,146.43,146.4,0.04588954]
[1740769078101,218.54,146.49,146.4,0.04588954]
[1740769078401,4.6811,146.56,146.46,6.8288]
[1740769078599,13.88,146.54,146.46,6.8288]
[1740769078806,6.8267,146.51,146.47,2.8941]
[1740769079103,13.88,146.54,146.43,6.8302]
[1740769079304,6.8278,146.49,146.48,0.04300033]
[1740769080303,20.7078,146.49,146.48,0.04300033]
[1740769080700,6.8296,146.45,146.41,2.8941]
[1740769080906,13.88,146.49,146.41,2.8941]
[1740769081203,6.8283,146.48,146.41,9.725]
[1740769081412,6.8283,146.48,146.41,2.8941]
[1740769081705,13.88,146.49,146.41,2.8941]
[1740769081906,6.87950777,146.46,146.43,0.04539551]
[1740769082099,0.05020777,146.46,146.43,0.04539551]
[1740769082299,6.8299,146.44,146.43,0.04539551]
[1740769082501,20.6899,146.44,146.43,0.04539551]
[1740769082702,13.86,146.44,146.35,2.7858]
[1740769083411,6.8331,146.38,146.34,9.23947159]
[1740769083605,13.92,146.39,146.34,9.23947159]
[1740769083910,13.92,146.39,146.35,0.0458728]
[1740769083911,0.04393871,146.37,146.35,0.0458728]
[1740769084416,0.04393871,146.37,146.36,6.8336]
[1740769084711,13.92,146.39,146.35,0.0458728]
[1740769084905,13.92,146.43,146.35,0.0458728]
[1740769085908,0.0517336,146.4,146.35,0.0458728]
[1740769087308,6.8323,146.39,146.35,0.0458728]
[1740769087611,13.9,146.38,146.35,0.0458728]
[1740769088106,20.7327,146.38,146.35,0.0458728]
[1740769088509,13.9,146.38,146.35,0.0458728]
[1740769090004,20.733,146.38,146.35,0.0458728]
[1740769090704,6.8332,146.37,146.35,0.0458728]
[1740769091300,20.7329,146.38,146.35,0.0458728]
[1740769092507,13.9,146.38,146.35,0.0458728]
[1740769093307,13.9,146.38,146.27,2.8093]
[1740769093508,6.8343,146.35,146.28,6.8371]
[1740769093707,218.7,146.35,146.27,2.8093]
[1740769094014,6.8351,146.33,146.27,2.8093]
[1740769094205,13.88,146.32,146.27,2.8093]
[1740769094410,0.05099197,146.31,146.29,0.05133226]
[1740769096914,6.8373,146.29,146.23,6.8396]
[1740769097113,13.88,146.32,146.22,5.7815]
[1740769097615,6.8374,146.28,146.22,5.7815]
[1740769097815,13.86,146.27,146.22,5.7815]
[1740769098125,0.04912591,146.26,146.23,6.88713371]
[1740769098314,0.04912591,146.26,146.23,0.04743371]
[1740769098812,0.04912591,146.26,146.25,6.8388]
[1740769099217,0.04912591,146.26,146.23,0.04743371]
[1740769103524,6.88752591,146.26,146.23,0.04743371]
[1740769104318,0.04912591,146.26,146.23,0.04743371]
[1740769106321,6.8389,146.25,146.23,0.04743371]
[1740769107322,0.04912591,146.26,146.23,0.04743371]
[1740769108225,0.04912591,146.26,146.13,13.86]
[1740769108226,218.88,146.25,146.05,200.81855798]
[1740769108419,218.88,146.25,146.1,5.7538]
[1740769109320,0.04716894,146.19,146.16,0.04700891]
[1740769109518,13.86,146.19,146.1,5.7538]
[1740769109827,13.90873315,146.19,146.16,0.0450376]
[1740769110124,13.86,146.19,146.1,5.7538]
[1740769110324,13.9075345,146.19,146.16,0.05062318]
[1740769110526,13.86,146.19,146.13,6.8441]
[1740769110723,13.90406018,146.19,146.16,0.04657739]
[1740769111723,0.04406018,146.19,146.16,0.04657739]
[1740769112530,0.04406018,146.19,146.18,6.8421]
[1740769113028,20.6996,146.24,146.2,6.8411]
[1740769113232,13.86,146.24,146.17,8.8208]
[1740769114227,0.04909847,146.22,146.19,0.05149343]
[1740769114430,0.04909847,146.22,146.19,6.89279343]
[1740769115830,6.88939847,146.22,146.19,0.05149343]
[1740769116032,0.04909847,146.22,146.19,0.05149343]
[1740769116232,6.841,146.21,146.19,0.05149343]
[1740769116431,0.04909847,146.22,146.19,0.05149343]
[1740769117731,6.8411,146.2,146.19,0.05149343]
[1740769119036,6.88959847,146.22,146.19,0.05149343]
[1740769119634,0.04909847,146.22,146.19,0.05149343]
[1740769121536,13.90909847,146.22,146.19,0.05149343]
[1740769121732,13.90909847,146.22,146.19,6.89279343]
[1740769121934,13.90909847,146.22,146.19,0.05149343]
[1740769122831,20.74939847,146.22,146.19,0.05149343]
[1740769123037,13.90909847,146.22,146.19,0.05149343]
[1740769124028,20.74929847,146.22,146.19,0.05149343]
[1740769124436,13.90909847,146.22,146.19,0.05149343]
[1740769125640,20.74959847,146.22,146.19,0.05149343]
[1740769126944,6.841,146.21,146.19,0.05149343]
[1740769127345,13.90909847,146.22,146.19,0.05149343]
[1740769128041,6.8409,146.21,146.19,0.05149343]
[1740769128440,13.90909847,146.22,146.19,0.05149343]
[1740769128645,6.8411,146.2,146.19,0.05149343]
[1740769129648,6.8419,146.19,146.13,9.23947159]
[1740769129842,13.90909847,146.22,146.13,9.23947159]
[1740769130148,15.22780194,146.22,146.13,9.23947159]
[1740769130646,15.22780194,146.22,146.13,16.08357159]
[1740769130843,0.04493956,146.19,146.16,0.04330182]
[1740769131845,6.8443,146.14,146.11,9.23947159]
[1740769132044,232.84,146.13,146.11,9.23947159]
[1740769132951,232.89214756,146.13,146.11,9.28643691]
[1740769133246,232.89214756,146.13,146.11,0.04696532]
[1740769133656,232.89214756,146.13,146.1,9.23947159]
[1740769133852,6.8453,146.11,146.1,2.77987159]
[1740769134246,6.8452,146.12,146.1,2.77987159]
[1740769134751,6.8452,146.12,146.1,2.83169727]
[1740769134951,6.8453,146.11,146.1,2.83169727]
[1740769136452,6.8453,146.11,146.1,0.05182568]
[1740769137550,6.8469,146.08,145.99,43.42221208]
[1740769137850,13.86,146.07,145.99,43.42221208]
[1740769138653,0.04505825,146.04,146.02,0.04600159]
[1740769142550,0.04505825,146.04,146.02,6.89550159]
[1740769143055,6.8471,146.08,146.02,0.04600159]
[1740769143254,6.8471,146.08,146.04,6.8485]
[1740769143457,6.8471,146.08,146.05,2.8722]
[1740769143850,6.8465,146.09,146.05,9.7203]
[1740769144050,0.05186159,146.08,146.05,9.76984066]
[1740769144253,0.05186159,146.08,146.05,0.04954066]
[1740769144457,6.89886159,146.08,146.05,0.04954066]
[1740769144657,0.05186159,146.08,146.05,0.04954066]
[1740769145158,0.05186159,146.08,146.05,6.89754066]
[1740769145358,13.86,146.1,146.05,0.04954066]
[1740769145554,6.8457,146.11,146.07,6.8472]
[1740769145759,218.98,146.13,146.08,2.8961]
[1740769146558,0.04388186,146.12,146.09,0.04454809]
[1740769147560,6.88878186,146.12,146.09,0.04454809]
[1740769147861,0.04388186,146.12,146.09,0.04454809]
[1740769148257,6.8457,146.11,146.09,0.04454809]
[1740769148456,0.04388186,146.12,146.09,0.04454809]
[1740769149160,0.04388186,146.12,146.09,6.89084809]
[1740769149556,0.04388186,146.12,146.09,0.04454809]
[1740769149762,0.04388186,146.12,146.1,6.8455]
[1740769150163,0.04388186,146.12,146.09,0.04454809]
[1740769150565,0.04388186,146.12,146.09,2.84284809]
[1740769150764,0.04388186,146.12,146.1,6.8455]
[1740769151159,219.1,146.2,146.09,2.84284809]
[1740769151365,6.8426,146.17,146.13,6.8441]
[1740769152262,0.04403798,146.16,146.14,0.04510883]
[1740769152662,1.36817622,146.18,146.14,0.04510883]
[1740769152865,219.08,146.27,146.14,0.04510883]
[1740769153063,15.04293822,146.26,146.13,2.9919]
[1740769153363,13.86,146.26,146.13,2.9919]
[1740769153862,0.05086687,146.21,146.18,0.04425461]
[1740769154065,6.89186687,146.21,146.18,0.04425461]
[1740769154263,0.05086687,146.21,146.18,0.04425461]
[1740769154956,6.89166687,146.21,146.18,0.04425461]
[1740769155557,6.8412,146.2,146.18,0.04425461]
[1740769155761,0.05086687,146.21,146.18,0.04425461]
[1740769156264,0.05086687,146.21,146.19,6.8415]
[1740769158371,0.05086687,146.21,146.18,0.04425461]
[1740769158572,6.8416,146.19,146.18,0.04425461]
[1740769159471,6.8412,146.2,146.18,0.04425461]
[1740769159968,20.75166687,146.21,146.18,0.04425461]
[1740769160178,13.91086687,146.21,146.18,0.04425461]
[1740769161177,20.75156687,146.21,146.18,0.04425461]
[1740769161374,13.91086687,146.21,146.18,0.04425461]
[1740769162471,0.05086687,146.21,146.18,0.04425461]
[1740769162782,0.05086687,146.21,146.18,6.88625461]
[1740769163377,0.05086687,146.21,146.2,6.8411]
[1740769165178,0.05086687,146.21,146.18,0.04425461]
[1740769166378,6.89156687,146.21,146.18,0.04425461]
[1740769167081,0.05086687,146.21,146.18,0.04425461]
[1740769169480,6.8416,146.19,146.18,0.04425461]
[1740769170083,6.8413,146.2,146.18,0.04425461]
[1740769170279,0.05086687,146.21,146.18,0.04425461]
[1740769170675,6.8416,146.19,146.18,0.04425461]
[1740769172385,13.86,146.2,146.06,2.8573]
[1740769172579,13.86,146.2,146.09,2.9013]
[1740769172787,1.18352873,146.19,146.09,2.9013]
[1740769172982,1.18361741,146.18,146.09,2.9013]
[1740769173185,218.98,146.17,146.09,2.9013]
[1740769173580,0.05184157,146.14,146.12,0.04822145]
[1740769175582,218.98,146.17,146.13,6.8444]
[1740769175788,15.22808263,146.19,146.13,2.9219]
[1740769175989,1.36808263,146.19,146.13,5.8227]
[1740769176791,1.36808263,146.19,146.17,6.8424]
[1740769177182,1.41177928,146.19,146.17,6.8855604]
[1740769177582,1.41177928,146.19,146.17,0.0431604]
[1740769177786,0.04369665,146.19,146.17,0.0431604]
[1740769178491,0.04369665,146.19,146.17,6.8856604]
[1740769178692,0.04369665,146.19,146.17,0.0431604]
[1740769178992,0.04369665,146.19,146.18,6.8421]
[1740769179586,0.04369665,146.19,146.17,0.0431604]
[1740769179786,0.04369665,146.19,146.17,6.8855604]
[1740769179990,0.04369665,146.19,146.17,0.0431604]
[1740769180191,232.88,146.25,146.17,0.0431604]
[1740769180390,6.8394,146.24,146.18,6.8416]
[1740769180785,6.8394,146.24,146.13,19.6827]
[1740769180982,6.8394,146.24,146.19,6.8416]
[1740769181183,232.88,146.25,146.13,19.6827]
[1740769181184,219.02,146.25,146.13,19.6827]
[1740769181388,219.02,146.25,146.2,0.04876969]
[1740769181989,6.89062723,146.24,146.2,0.04876969]
[1740769182187,0.05132723,146.24,146.2,0.04876969]
[1740769182392,0.05132723,146.24,146.23,6.8397]
[1740769184394,13.84,146.31,146.21,5.8898]
[1740769184599,13.84,146.31,146.25,6.8387]
[1740769185194,6.8367,146.3,146.24,6.8391]
[1740769185695,0.04562193,146.28,146.26,0.05105181]
[1740769186491,0.04562193,146.28,146.26,6.88925181]
[1740769186689,0.04562193,146.28,146.26,0.05105181]
[1740769187295,0.04562193,146.28,146.27,6.8379]
[1740769187992,218.98,146.32,146.26,0.05105181]
[1740769188382,6.8349,146.34,146.26,0.05105181]
[1740769188587,13.84,146.35,146.26,0.05105181]
[1740769188588,20.6744,146.35,146.26,0.05105181]
[1740769188793,1.6054,146.37,146.23,13.84]
[1740769188995,13.84,146.36,146.23,13.84]
[1740769189197,0.04691233,146.31,146.29,0.04346154]
[1740769189493,13.84,146.36,146.29,0.04346154]
[1740769189793,6.8358,146.32,146.29,0.04346154]
[1740769190791,6.8364,146.31,146.29,0.04346154]
[1740769191594,6.8356,146.32,146.29,0.04346154]
[1740769191895,0.04451038,146.34,146.29,0.04346154]
[1740769192793,6.8358,146.32,146.29,0.04346154]
[1740769193093,0.04451038,146.34,146.29,0.04346154]
[1740769193594,6.8354,146.33,146.29,0.04346154]
[1740769194991,0.04451038,146.34,146.29,0.04346154]
[1740769195185,0.04451038,146.34,146.31,6.8357]
[1740769195994,0.04451038,146.34,146.29,6.88026154]
[1740769196585,6.87911038,146.34,146.29,0.04346154]
[1740769197998,6.87911038,146.34,146.29,6.88036154]
[1740769198295,6.8351,146.33,146.29,0.04346154]
[1740769198492,0.04451038,146.34,146.29,0.04346154]
[1740769198696,6.836,146.31,146.29,0.04346154]
[1740769199091,13.84,146.3,146.22,6.84]
[1740769199397,13.84,146.3,146.21,5.8898]
[1740769199398,6.8382,146.27,146.21,5.8898]
[1740769199591,13.84,146.3,146.17,9.35699722]
[1740769199895,6.8397,146.23,146.17,9.35699722]
[1740769200292,0.05049518,146.21,146.19,0.04730784]
[1740769201992,13.84,146.28,146.19,0.04730784]
[1740769202192,13.84,146.28,146.16,19.5797]
[1740769202795,220.20714744,146.29,146.25,6.8384]
[1740769202996,0.04412672,146.23,146.21,0.0476078]
[1740769203196,220.20714744,146.29,146.16,211.5797]
[1740769203398,220.20714744,146.29,146.25,6.8386]
[1740769203601,220.20714744,146.29,146.16,211.5797]
[1740769203901,220.20714744,146.29,146.22,6.8398]
[1740769204100,220.20714744,146.29,146.16,211.5797]
[1740769204300,0.0488609,146.24,146.21,0.04928911]
[1740769204999,0.0488609,146.24,146.23,6.8397]
[1740769205199,1.36714744,146.29,146.21,0.04928911]
[1740769205401,1.36714744,146.29,146.21,13.88928911]
[1740769205696,53.55506471,146.47,146.22,2.7781]
[1740769205892,13.84,146.39,146.22,2.7781]
[1740769206092,13.84,146.39,146.32,6.8354]
[1740769206291,5.865e-05,146.3,146.28,13.88664157]
[1740769206498,6.833,146.38,146.29,2.7781]
[1740769206693,6.8326,146.39,146.29,2.7781]
[1740769206899,13.84,146.42,146.29,2.7781]
[1740769207199,220.6304,146.43,146.29,2.7781]
[1740769207401,234.4704,146.43,146.29,2.7781]
[1740769207699,0.04517381,146.37,146.35,0.04686242]
[1740769208197,0.04517381,146.37,146.35,6.88096242]
[1740769208391,0.04517381,146.37,146.35,0.04686242]
[1740769209200,218.84,146.43,146.35,0.04686242]
[1740769209396,1.6862,146.49,146.35,0.04686242]
[1740769209589,15.0210097,146.48,146.33,13.84]
[1740769209794,20.6684,146.48,146.33,13.84]
[1740769210100,1.6862,146.49,146.33,13.84]
[1740769210303,218.82,146.5,146.39,0.04345642]
[1740769210495,218.82,146.5,146.39,13.82]
[1740769210694,218.82,146.5,146.4,2.9511]
[1740769210893,13.82,146.52,146.43,0.04887172]
[1740769211299,13.82,146.52,146.4,2.9511]
[1740769211496,13.82,146.54,146.46,0.04541509]
[1740769211899,13.82,146.54,146.44,6.8295]
[1740769212205,13.82,146.54,146.49,0.04648778]
[1740769212392,1.6862,146.55,146.49,0.04648778]
[1740769212595,0.1499,146.56,146.45,2.9732]
[1740769212596,13.9699,146.56,146.45,2.9732]
[1740769212799,13.9699,146.56,146.51,0.04408052]
[1740769213394,13.82,146.56,146.51,0.04408052]
[1740769213799,6.8261,146.53,146.51,0.04408052]
[1740769214106,13.82,146.56,146.51,0.04408052]
[1740769214403,6.8262,146.52,146.51,0.04408052]
[1740769214600,13.82,146.56,146.4,2.9511]
[1740769214805,2.54529502,146.55,146.41,5.8432]
[1740769215007,13.82,146.56,146.41,5.8432]
[1740769215008,2.54538815,146.54,146.41,5.8432]
[1740769215205,6.8286,146.47,146.41,5.8432]
[1740769215607,13.82,146.49,146.35,228.98742299]
[1740769215808,6.87388052,146.45,146.43,0.04679409]
[1740769216210,0.04408052,146.45,146.43,0.04679409]
[1740769218008,13.82,146.44,146.43,0.04679409]
[1740769219206,20.6499,146.44,146.43,0.04679409]
[1740769219707,13.82,146.44,146.36,5.8432]
[1740769220111,13.82,146.44,146.35,6.8338]
[1740769220310,6.8316,146.41,146.35,6.8338]
[1740769220502,13.82,146.44,146.29,13.82]
[1740769221212,0.04608603,146.38,146.37,6.8332]
[1740769221414,13.82,146.44,146.35,0.04891742]
[1740769221602,13.82,146.44,146.29,13.82]
[1740769222313,232.46,146.47,146.29,13.82]
[1740769222514,232.46,146.47,146.35,0.05177432]
[1740769222808,8.858e-05,146.39,146.36,13.82]
[1740769223003,232.46,146.47,146.4,0.04556441]
[1740769223207,232.46,146.47,146.37,5.6014]
[1740769223608,232.46,146.47,146.38,6.8324]
[1740769223807,232.46,146.47,146.37,5.6014]
[1740769224012,232.46,146.47,146.41,0.04381098]
[1740769226019,6.8308,146.42,146.41,0.04381098]
[1740769226315,1.5727,146.46,146.41,0.04381098]
[1740769227513,232.46,146.47,146.41,0.04381098]
[1740769227827,239.2887,146.47,146.41,6.87511098]
[1740769228010,232.46,146.47,146.41,0.04381098]
[1740769228215,218.64,146.47,146.41,0.04381098]